fUSD/lending_fUSD_20250507
["ID","MTS","AMOUNT","RATE_DAILY","PERIOD"]
[360191079,1746613844827,-450.0,0.00019517,2]
[360191080,1746613844837,-243.641554,0.00019517,2]
[360191081,1746613844846,-151.0,0.00019517,2]
[360191082,1746613844856,-151.0,0.00019517,2]
[360191083,1746613844866,-450.0,0.00019517,2]
[360191084,1746613844875,-151.0,0.00019517,2]
[360191085,1746613844884,-450.0,0.00019517,2]
[360191086,1746613844893,-450.0,0.00019517,2]
[360191087,1746613844903,-517.05087529,0.00019517,2]
[360191088,1746613844912,-941.18,0.00019517,2]
[360191089,1746613844922,-461.57263306,0.00019517,2]
[360191090,1746613844933,-517.64,0.00019517,2]
[360191091,1746613844943,-450.0,0.00019517,2]
[360191092,1746613844952,-1345.42,0.00019517,2]
[360191093,1746613844962,-151.0,0.00019517,2]
[360191094,1746613844971,-151.0,0.00019517,2]
[360191095,1746613844980,-151.0,0.00019517,2]
[360191096,1746613844990,-151.0,0.00019517,2]
[360191097,1746613844999,-283.202377,0.00019517,2]
[360191098,1746613845009,-151.0,0.00019517,2]
[360191099,1746613845019,-200.10793961,0.00019517,2]
[360191100,1746613845028,-283.202377,0.00019517,2]
[360191101,1746613845038,-828.66,0.00019517,2]
[360191102,1746613845048,-450.0,0.00019517,2]
[360191103,1746613845058,-426.44878988,0.00019517,2]
[360191104,1746613845067,-801.76,0.00019517,2]
[360191105,1746613845076,-450.0,0.00019517,2]
[360191106,1746613845085,-450.0,0.00019517,2]
[360191107,1746613845095,-500.0,0.00019517,2]
[360191108,1746613845104,-745.95,0.00019517,2]
[360191109,1746613845114,-450.0,0.00019517,2]
[360191110,1746613845123,-459.09512556,0.00019517,2]
[360191111,1746613845133,-1369.65,0.00019517,2]
[360191112,1746613845142,-1369.65,0.00019517,2]
[360191113,1746613845151,-741.87,0.00019517,2]
[360191114,1746613845161,-741.87,0.00019517,2]
[360191115,1746613845171,-1473.54,0.00019517,2]
[360191116,1746613845180,-450.0,0.00019517,2]
[360191117,1746613845189,-450.0,0.00019517,2]
[360191118,1746613845199,-479.31271413,0.00019517,2]
[360191119,1746613845208,-450.0,0.00019517,2]
[360191120,1746613845219,-924.54,0.00019517,2]
[360191121,1746613845228,-450.0,0.00019517,2]
[360191122,1746613845237,-450.0,0.00019517,2]
[360191123,1746613845247,-450.0,0.00019517,2]
[360191124,1746613845257,-450.0,0.00019517,2]
[360191125,1746613845267,-810.25,0.00019517,2]
[360191126,1746613845276,-450.0,0.00019517,2]
[360191127,1746613845286,-453.04538482,0.00019517,2]
[360191128,1746613845297,-450.0,0.00019517,2]
[360191129,1746613845307,-151.0,0.00019517,2]
[360191130,1746613845316,-909.16,0.00019517,2]
[360191131,1746613845328,-206.639879,0.00019517,2]
[360191132,1746613845338,-450.0,0.00019517,2]
[360191133,1746613845348,-450.0,0.00019517,2]
[360191134,1746613845358,-450.0,0.00019517,2]
[360191135,1746613845368,-450.0,0.00019517,2]
[360191136,1746613845378,-321.81,0.00019517,2]
[360191137,1746613845387,-450.0,0.00019517,2]
[360191138,1746613845396,-525.17372169,0.00019517,2]
[360191139,1746613845407,-450.0,0.00019517,2]
[360191140,1746613845417,-597.32,0.00019517,2]
[360191141,1746613845426,-597.32,0.00019517,2]
[360191142,1746613845436,-151.0,0.00019517,2]
[360191143,1746613845445,-741.48,0.00019517,2]
[360191144,1746613845455,-450.0,0.00019517,2]
[360191145,1746613845464,-450.0,0.00019517,2]
[360191146,1746613845474,-450.0,0.00019517,2]
[360191147,1746613845483,-201.422014,0.00019517,2]
[360191148,1746613845493,-450.0,0.00019517,2]
[360191149,1746613845502,-201.422014,0.00019517,2]
[360191150,1746613845511,-450.0,0.00019517,2]
[360191151,1746613845520,-2037.95,0.00019517,2]
[360191152,1746613845530,-2037.95,0.00019517,2]
[360191153,1746613845539,-201.422014,0.00019517,2]
[360191154,1746613845549,-201.422014,0.00019517,2]
[360191155,1746613845559,-1828.96,0.00019517,2]
[360191156,1746613845568,-450.0,0.00019517,2]
[360191157,1746613845577,-1060.78,0.00019517,2]
[360191158,1746613845587,-1060.78,0.00019517,2]
[360191159,1746613845598,-696.03,0.00019517,2]
[360191160,1746613845607,-696.03,0.00019517,2]
[360191161,1746613845617,-450.0,0.00019517,2]
[360191162,1746613845626,-450.0,0.00019517,2]
[360191163,1746613845635,-692.97,0.00019517,2]
[360191164,1746613845645,-692.97,0.00019517,2]
[360191165,1746613845654,-450.0,0.00019517,2]
[360191166,1746613845664,-151.0,0.00019517,2]
[360191167,1746613845673,-151.0,0.00019517,2]
[360191168,1746613845682,-450.0,0.00019517,2]
[360191169,1746613845692,-512.64,0.00019517,2]
[360191170,1746613845701,-450.0,0.00019517,2]
[360191171,1746613845711,-512.64,0.00019517,2]
[360191172,1746613845721,-458.14052005,0.00019517,2]
[360191173,1746613845731,-450.0,0.00019517,2]
[360191174,1746613845740,-450.0,0.00019517,2]
[360191175,1746613845749,-198.19495743,0.00019517,2]
[360191177,1746613845759,-450.0,0.00019517,2]
[360191178,1746613845768,-1317.15,0.00019517,2]
[360191179,1746613845777,-515.92,0.00019517,2]
[360191180,1746613845787,-515.92,0.00019517,2]
[360191181,1746613845796,-64758.75,0.00019517,2]
[360191182,1746613845806,-36143.90062844,0.00019517,2]
[360191183,1746613846666,-450.0,0.00019515,2]
[360191184,1746613846676,-1261.58496145,0.00019517,2]
[360191185,1746613846687,-1218.40535053,0.00019517,2]
[360191186,1746613846698,-1940.0,0.00019517,2]
[360191187,1746613846713,-3994.77402288,0.00019517,2]
[360191188,1746613846732,-1828.26678624,0.00019517,2]
[360191189,1746613846744,-16084.43910003,0.00019517,2]
[360191190,1746613846756,-2287.37915043,0.00019517,2]
[360191191,1746613846765,-310.53066299,0.00019517,2]
[360191192,1746613852241,1374.0,0.000194,2]
[360191193,1746613893799,250.0,0.00017,2]
[360191194,1746613894878,300.0,0.00019,2]
[360191195,1746613899509,937.1057,0.00019417,2]
[360191196,1746613901622,150.0,0.00018986,7]
[360191197,1746613911249,7881.9162,0.00019416,2]
[360191198,1746614100685,196.80476315,0.00019417,2]
[360191210,1746614107566,220.28114263,0.0001932,2]
[360191216,1746614112176,500.0,0.00029589,30]
[360191217,1746614112434,500.0,0.00029863,35]
[360191218,1746614118080,157.14749848,0.00019489,2]
[360191220,1746614180639,4635.03,0.00019416,2]
[360191221,1746614277500,50000.0,0.0003,30]
[360191222,1746614370520,196.80476314,0.00019416,2]
[360191223,1746614400202,573.6937553,0.0003,30]
[360191224,1746614555951,15000.0,0.00018531,2]
[360191225,1746614570017,1747.31533774,0.00019495,2]
[360191226,1746614584374,1820.0,0.0003,30]
[360191227,1746614596092,1804.7932,0.00019416,2]
[360191228,1746614626671,551.76,0.00019415,2]
[360191229,1746614629787,293.19165393,0.00019417,2]
[360191230,1746614631321,203.11656857,0.00019415,2]
[360191231,1746614646328,1405.20586847,0.00019415,2]
[360191232,1746614650843,1405.20586843,0.00019424,2]
[360191233,1746614655870,1405.20586843,0.00019433,2]
[360191234,1746614660823,1405.20586843,0.00019442,2]
[360191235,1746614665818,1405.20586843,0.00019451,2]
[360191236,1746614670849,1405.20586843,0.00019459,2]
[360191237,1746614673830,198.45468826,0.00019485,3]
[360191238,1746614675846,1405.20586843,0.00019468,2]
[360191239,1746614680812,1405.20586843,0.00019477,2]
[360191240,1746614685840,1405.20586843,0.00019486,2]
[360191241,1746614690848,1405.20586843,0.00019495,2]
[360191242,1746614691940,203.8247,0.00019414,2]
[360191243,1746614693842,3741.4305,0.00019415,2]
[360191244,1746614699969,914.65790777,0.00019485,2]
[360191245,1746614715386,442.18437316,0.00019484,2]
[360191246,1746614746038,1000.0,0.00018536,2]
[360191247,1746614766130,-1200.0,0.00019502,2]
[360191248,1746614766152,-300.0,0.00019502,2]
[360191249,1746614766175,-200.0,0.00019503,2]
[360191250,1746614766197,-500.0,0.00019503,2]
[360191251,1746614766231,-500.0,0.00019503,2]
[360191252,1746614766263,-500.0,0.00019503,2]
[360191253,1746614766286,-643.78061401,0.00019503,2]
[360191254,1746614766316,-500.0,0.00019503,2]
[360191255,1746614766348,-500.0,0.00019503,2]
[360191256,1746614766369,-500.0,0.00019503,2]
[360191257,1746614766401,-500.0,0.00019503,2]
[360191258,1746614766436,-500.0,0.00019503,2]
[360191259,1746614766468,-500.0,0.00019503,2]
[360191260,1746614766499,-500.0,0.00019503,2]
[360191261,1746614766530,-500.0,0.00019503,2]
[360191262,1746614766562,-500.0,0.00019503,2]
[360191263,1746614766593,-500.0,0.00019503,2]
[360191264,1746614766625,-500.0,0.00019503,2]
[360191265,1746614766658,-500.0,0.00019503,2]
[360191266,1746614766691,-500.0,0.00019503,2]
[360191267,1746614766722,-500.0,0.00019503,2]
[360191268,1746614766754,-500.0,0.00019503,2]
[360191269,1746614766786,-500.0,0.00019503,2]
[360191270,1746614766817,-500.0,0.00019503,2]
[360191271,1746614766851,-500.0,0.00019503,2]
[360191272,1746614766882,-500.0,0.00019503,2]
[360191273,1746614766915,-500.0,0.00019503,2]
[360191274,1746614766946,-500.0,0.00019503,2]
[360191275,1746614766976,-500.0,0.00019503,2]
[360191276,1746614767008,-500.0,0.00019503,2]
[360191277,1746614767039,-500.0,0.00019503,2]
[360191278,1746614767070,-577.79606857,0.00019503,2]
[360191279,1746614767100,-841.85368334,0.00019503,2]
[360191280,1746614767131,-841.85368334,0.00019503,2]
[360191281,1746614767165,-841.85368334,0.00019503,2]
[360191282,1746614767197,-841.85368334,0.00019503,2]
[360191283,1746614767228,-841.85368334,0.00019503,2]
[360191284,1746614767260,-841.85368334,0.00019503,2]
[360191285,1746614767292,-841.85368334,0.00019503,2]
[360191286,1746614767323,-841.85368334,0.00019503,2]
[360191287,1746614767355,-841.85368334,0.00019503,2]
[360191288,1746614767387,-841.85368334,0.00019503,2]
[360191289,1746614767417,-841.85368334,0.00019503,2]
[360191290,1746614767447,-841.85368334,0.00019503,2]
[360191291,1746614767480,-841.85368334,0.00019503,2]
[360191292,1746614767510,-841.85368334,0.00019503,2]
[360191293,1746614767540,-841.85368334,0.00019503,2]
[360191294,1746614767570,-841.85368334,0.00019503,2]
[360191295,1746614767600,-841.85368334,0.00019503,2]
[360191296,1746614767633,-841.85368334,0.00019503,2]
[360191297,1746614767666,-841.85368334,0.00019503,2]
[360191298,1746614767697,-841.85368334,0.00019503,2]
[360191299,1746614767728,-841.85368334,0.00019503,2]
[360191300,1746614767758,-841.85368334,0.00019503,2]
[360191301,1746614767788,-841.85368334,0.00019503,2]
[360191302,1746614767821,-841.85368334,0.00019503,2]
[360191303,1746614767852,-841.85368334,0.00019503,2]
[360191304,1746614767883,-841.85368334,0.00019503,2]
[360191305,1746614767915,-841.85368334,0.00019503,2]
[360191306,1746614767945,-841.85368334,0.00019503,2]
[360191307,1746614767975,-841.85368334,0.00019503,2]
[360191308,1746614768006,-841.85368334,0.00019503,2]
[360191309,1746614768038,-841.85368334,0.00019503,2]
[360191310,1746614768068,-841.85368334,0.00019503,2]
[360191311,1746614768099,-841.85368334,0.00019503,2]
[360191312,1746614768129,-841.85368334,0.00019503,2]
[360191313,1746614768161,-836.87720837,0.00019503,2]
[360191314,1746614768191,-836.87720837,0.00019503,2]
[360191315,1746614768223,-836.87720837,0.00019503,2]
[360191316,1746614768253,-836.87720837,0.00019503,2]
[360191317,1746614768284,-836.87720837,0.00019503,2]
[360191318,1746614768315,-836.87720837,0.00019503,2]
[360191319,1746614768347,-836.87720837,0.00019503,2]
[360191320,1746614768379,-836.87720837,0.00019503,2]
[360191321,1746614768411,-836.87720837,0.00019503,2]
[360191322,1746614768444,-836.87720837,0.00019503,2]
[360191323,1746614768475,-836.87720837,0.00019503,2]
[360191324,1746614768508,-836.87720837,0.00019503,2]
[360191325,1746614768540,-836.87720837,0.00019503,2]
[360191326,1746614768573,-836.87720837,0.00019503,2]
[360191327,1746614768605,-836.87720837,0.00019503,2]
[360191328,1746614768638,-836.87720837,0.00019503,2]
[360191329,1746614768672,-836.87720837,0.00019503,2]
[360191330,1746614768705,-836.87720837,0.00019503,2]
[360191331,1746614768738,-836.87720837,0.00019503,2]
[360191332,1746614768770,-836.87720837,0.00019503,2]
[360191333,1746614768806,-836.87720837,0.00019503,2]
[360191334,1746614768838,-836.87720837,0.00019503,2]
[360191335,1746614768869,-836.87720837,0.00019503,2]
[360191336,1746614768901,-836.87720839,0.00019503,2]
[360191337,1746614768933,-836.87720839,0.00019503,2]
[360191338,1746614768965,-836.87720839,0.00019503,2]
[360191339,1746614768995,-836.87720839,0.00019503,2]
[360191340,1746614769026,-836.87720839,0.00019503,2]
[360191341,1746614769057,-836.87720837,0.00019503,2]
[360191342,1746614769078,-250.0,0.00019504,2]
[360191343,1746614769100,-200.0,0.00019504,2]
[360191344,1746614769120,-151.0,0.00019504,2]
[360191345,1746614769141,-207.4,0.00019504,2]
[360191346,1746614769162,-151.0,0.00019505,2]
[360191347,1746614769186,-546.93,0.00019505,2]
[360191348,1746614769209,-64066.20588447,0.00019505,2]
[360191349,1746614769230,-165.096,0.00019514,2]
[360191350,1746614769252,-450.0,0.00019514,2]
[360191351,1746614769274,-450.0,0.00019514,2]
[360191352,1746614769299,-450.0,0.00019514,2]
[360191353,1746614769321,-450.0,0.00019514,2]
[360191354,1746614769342,-450.0,0.00019514,2]
[360191355,1746614769363,-450.0,0.00019514,2]
[360191356,1746614769384,-261.37,0.00019514,2]
[360191357,1746614769406,-450.0,0.00019514,2]
[360191358,1746614769431,-450.0,0.00019514,2]
[360191359,1746614769456,-450.0,0.00019514,2]
[360191360,1746614769478,-450.0,0.00019514,2]
[360191361,1746614769500,-578.71361454,0.00019514,2]
[360191362,1746614769521,-450.0,0.00019514,2]
[360191363,1746614769543,-507.91,0.00019514,2]
[360191364,1746614769563,-450.0,0.00019514,2]
[360191365,1746614769585,-450.0,0.00019514,2]
[360191366,1746614769607,-450.0,0.00019514,2]
[360191367,1746614769629,-161.2678221,0.00019514,2]
[360191368,1746614769651,-466.52660678,0.00019514,2]
[360191369,1746614769674,-450.0,0.00019514,2]
[360191370,1746614769696,-450.0,0.00019514,2]
[360191371,1746614769718,-450.0,0.00019514,2]
[360191372,1746614769740,-450.0,0.00019514,2]
[360191373,1746614769762,-450.0,0.00019514,2]
[360191374,1746614769784,-450.0,0.00019514,2]
[360191375,1746614769808,-450.0,0.00019514,2]
[360191376,1746614769830,-450.0,0.00019514,2]
[360191377,1746614769853,-450.0,0.00019514,2]
[360191378,1746614769876,-450.0,0.00019514,2]
[360191379,1746614769899,-450.0,0.00019514,2]
[360191380,1746614769923,-1357.82,0.00019514,2]
[360191381,1746614769945,-450.0,0.00019514,2]
[360191382,1746614769968,-450.0,0.00019514,2]
[360191383,1746614769990,-450.0,0.00019514,2]
[360191384,1746614770013,-450.0,0.00019514,2]
[360191385,1746614770036,-450.0,0.00019514,2]
[360191386,1746614770059,-450.0,0.00019514,2]
[360191387,1746614770080,-450.0,0.00019514,2]
[360191388,1746614770103,-450.0,0.00019514,2]
[360191389,1746614770125,-450.0,0.00019514,2]
[360191390,1746614770146,-450.0,0.00019514,2]
[360191391,1746614770167,-450.0,0.00019514,2]
[360191392,1746614770189,-450.0,0.00019514,2]
[360191393,1746614770211,-450.0,0.00019514,2]
[360191394,1746614770405,-450.0,0.00019514,2]
[360191395,1746614770428,-450.0,0.00019514,2]
[360191396,1746614770450,-450.0,0.00019514,2]
[360191397,1746614770472,-470.0,0.00019514,2]
[360191398,1746614770494,-558.496663,0.00019514,2]
[360191399,1746614770518,-1416.68,0.00019514,2]
[360191400,1746614770540,-450.0,0.00019514,2]
[360191401,1746614770562,-450.0,0.00019514,2]
[360191402,1746614770585,-450.0,0.00019514,2]
[360191403,1746614770608,-450.0,0.00019514,2]
[360191404,1746614770634,-450.0,0.00019514,2]
[360191405,1746614770656,-602.84,0.00019514,2]
[360191406,1746614770681,-450.0,0.00019514,2]
[360191407,1746614770704,-450.0,0.00019514,2]
[360191408,1746614770728,-450.0,0.00019514,2]
[360191409,1746614770753,-665.4,0.00019514,2]
[360191410,1746614770776,-450.0,0.00019514,2]
[360191411,1746614770798,-158.81000413,0.00019514,2]
[360191412,1746614770824,-450.0,0.00019514,2]
[360191413,1746614770847,-450.0,0.00019514,2]
[360191414,1746614770868,-450.0,0.00019514,2]
[360191415,1746614770896,-450.0,0.00019514,2]
[360191416,1746614770920,-450.0,0.00019514,2]
[360191417,1746614770942,-554.54888997,0.00019514,2]
[360191418,1746614770963,-483.94,0.00019514,2]
[360191419,1746614770984,-450.0,0.00019514,2]
[360191420,1746614771006,-450.0,0.00019514,2]
[360191421,1746614771028,-450.0,0.00019514,2]
[360191422,1746614771050,-450.0,0.00019514,2]
[360191423,1746614771070,-579.45543874,0.00019514,2]
[360191424,1746614771091,-450.0,0.00019514,2]
[360191425,1746614771112,-453.88097034,0.00019514,2]
[360191426,1746614771135,-590.12,0.00019514,2]
[360191427,1746614771156,-450.0,0.00019514,2]
[360191428,1746614771178,-616.27,0.00019514,2]
[360191429,1746614771199,-453.12089302,0.00019514,2]
[360191430,1746614771221,-7870.186506,0.00019514,2]
[360191431,1746614771243,-459.79948914,0.00019514,2]
[360191432,1746614771267,-1318.56,0.00019514,2]
[360191433,1746614771290,-230.463928,0.00019514,2]
[360191434,1746614771312,-545.29,0.00019514,2]
[360191435,1746614771334,-450.0,0.00019514,2]
[360191436,1746614771355,-195.64813422,0.00019514,2]
[360191437,1746614771380,-286.61126307,0.00019514,2]
[360191438,1746614771401,-176.26403115,0.00019514,2]
[360191439,1746614771424,-227.85834856,0.00019514,2]
[360191440,1746614771446,-154.38171721,0.00019514,2]
[360191441,1746614771469,-500.0,0.00019514,2]
[360191442,1746614771493,-500.0,0.00019514,2]
[360191443,1746614771516,-500.0,0.00019514,2]
[360191444,1746614771540,-500.0,0.00019514,2]
[360191445,1746614771563,-413.42513048,0.00019514,2]
[360191446,1746614771586,-500.0,0.00019514,2]
[360191447,1746614771610,-500.0,0.00019514,2]
[360191448,1746614771635,-500.0,0.00019514,2]
[360191449,1746614771658,-500.0,0.00019514,2]
[360191450,1746614771681,-500.0,0.00019514,2]
[360191451,1746614771704,-500.0,0.00019514,2]
[360191452,1746614771727,-450.0,0.00019514,2]
[360191453,1746614771748,-450.0,0.00019514,2]
[360191454,1746614771769,-450.0,0.00019514,2]
[360191455,1746614771791,-450.0,0.00019514,2]
[360191456,1746614771813,-450.0,0.00019514,2]
[360191457,1746614771835,-459.58314434,0.00019514,2]
[360191458,1746614771859,-450.0,0.00019514,2]
[360191459,1746614771883,-450.0,0.00019514,2]
[360191460,1746614771905,-450.0,0.00019514,2]
[360191461,1746614771928,-450.0,0.00019514,2]
[360191462,1746614771950,-450.0,0.00019514,2]
[360191463,1746614771972,-450.0,0.00019514,2]
[360191464,1746614771994,-450.0,0.00019514,2]
[360191465,1746614772016,-500.0,0.00019514,2]
[360191466,1746614772038,-550.0,0.00019514,2]
[360191467,1746614772059,-450.0,0.00019514,2]
[360191468,1746614772080,-450.0,0.00019514,2]
[360191469,1746614772101,-520.25,0.00019514,2]
[360191470,1746614772122,-450.0,0.00019514,2]
[360191471,1746614772144,-450.0,0.00019514,2]
[360191472,1746614772165,-450.0,0.00019514,2]
[360191473,1746614772186,-706.91,0.00019514,2]
[360191474,1746614772208,-450.0,0.00019514,2]
[360191475,1746614772229,-450.0,0.00019514,2]
[360191476,1746614772250,-995.8,0.00019514,2]
[360191477,1746614772272,-450.0,0.00019514,2]
[360191478,1746614772293,-450.0,0.00019514,2]
[360191479,1746614772314,-450.0,0.00019514,2]
[360191480,1746614772335,-450.0,0.00019514,2]
[360191481,1746614772356,-450.0,0.00019514,2]
[360191482,1746614772380,-500.0,0.00019514,2]
[360191483,1746614772402,-250.0,0.00019514,2]
[360191484,1746614772423,-450.0,0.00019514,2]
[360191485,1746614772445,-470.09,0.00019514,2]
[360191486,1746614772466,-470.09,0.00019514,2]
[360191487,1746614772487,-450.0,0.00019514,2]
[360191488,1746614772508,-155.26,0.00019514,2]
[360191489,1746614772530,-450.0,0.00019514,2]
[360191490,1746614772552,-500.0,0.00019514,2]
[360191491,1746614772574,-450.0,0.00019514,2]
[360191492,1746614772597,-500.0,0.00019514,2]
[360191493,1746614772621,-500.0,0.00019514,2]
[360191494,1746614772643,-205.68344134,0.00019514,2]
[360191495,1746614772665,-500.0,0.00019514,2]
[360191496,1746614772686,-522.38,0.00019514,2]
[360191497,1746614772708,-540.25,0.00019514,2]
[360191498,1746614772729,-450.0,0.00019514,2]
[360191499,1746614772750,-450.0,0.00019514,2]
[360191500,1746614772772,-1988.990205,0.00019514,2]
[360191501,1746614772793,-450.0,0.00019514,2]
[360191502,1746614772819,-862.74,0.00019514,2]
[360191503,1746614772843,-890.92,0.00019514,2]
[360191504,1746614772866,-890.92,0.00019514,2]
[360191505,1746614772890,-500.29,0.00019514,2]
[360191506,1746614772911,-450.0,0.00019514,2]
[360191507,1746614772932,-450.0,0.00019514,2]
[360191508,1746614772952,-186.77213404,0.00019514,2]
[360191509,1746614772974,-450.0,0.00019514,2]
[360191510,1746614772995,-503.33,0.00019514,2]
[360191511,1746614773018,-1695.43,0.00019514,2]
[360191512,1746614773040,-1695.43,0.00019514,2]
[360191513,1746614773062,-1826.21,0.00019514,2]
[360191514,1746614773085,-450.0,0.00019514,2]
[360191515,1746614773108,-450.0,0.00019514,2]
[360191516,1746614773131,-518.51,0.00019514,2]
[360191517,1746614773152,-518.51,0.00019514,2]
[360191518,1746614773173,-450.0,0.00019514,2]
[360191519,1746614773194,-450.0,0.00019514,2]
[360191520,1746614773217,-450.0,0.00019514,2]
[360191521,1746614773240,-450.0,0.00019514,2]
[360191522,1746614773263,-450.0,0.00019514,2]
[360191523,1746614773284,-450.0,0.00019514,2]
[360191524,1746614773306,-450.0,0.00019514,2]
[360191525,1746614773328,-450.0,0.00019514,2]
[360191526,1746614773349,-450.0,0.00019514,2]
[360191527,1746614773371,-1391.75,0.00019514,2]
[360191528,1746614773393,-450.0,0.00019514,2]
[360191529,1746614773415,-450.0,0.00019514,2]
[360191530,1746614773439,-450.0,0.00019514,2]
[360191531,1746614773461,-526.61,0.00019514,2]
[360191532,1746614773482,-526.61,0.00019514,2]
[360191533,1746614773503,-175.309457,0.00019514,2]
[360191534,1746614773525,-450.0,0.00019514,2]
[360191535,1746614773547,-450.0,0.00019515,2]
[360191536,1746614773569,-463.27639644,0.00019515,2]
[360191537,1746614773590,-204.91379864,0.00019515,2]
[360191538,1746614773612,-450.0,0.00019515,2]
[360191539,1746614773634,-463.0453981,0.00019515,2]
[360191540,1746614773655,-470.0,0.00019515,2]
[360191541,1746614773678,-450.0,0.00019515,2]
[360191542,1746614773699,-450.0,0.00019515,2]
[360191543,1746614773720,-475.88,0.00019515,2]
[360191544,1746614773927,-400.0,0.00019515,2]
[360191545,1746614773949,-450.0,0.00019515,2]
[360191546,1746614773971,-500.0,0.00019515,2]
[360191547,1746614773992,-450.0,0.00019515,2]
[360191548,1746614774013,-461.83108943,0.00019515,2]
[360191549,1746614774033,-530.33062322,0.00019515,2]
[360191550,1746614774055,-473.81152197,0.00019515,2]
[360191551,1746614774075,-470.0,0.00019515,2]
[360191552,1746614774095,-450.0,0.00019515,2]
[360191553,1746614774117,-450.0,0.00019515,2]
[360191554,1746614774138,-227.68897661,0.00019515,2]
[360191555,1746614774159,-450.0,0.00019515,2]
[360191556,1746614774180,-450.0,0.00019515,2]
[360191557,1746614774202,-450.0,0.00019515,2]
[360191558,1746614774224,-450.0,0.00019515,2]
[360191559,1746614774246,-536.36937883,0.00019515,2]
[360191560,1746614774267,-1103.82,0.00019515,2]
[360191561,1746614774288,-450.0,0.00019515,2]
[360191562,1746614774309,-415.43437428,0.00019515,2]
[360191563,1746614774330,-176.94464404,0.00019515,2]
[360191564,1746614774351,-478.70079423,0.00019515,2]
[360191565,1746614774373,-172.48773625,0.00019515,2]
[360191566,1746614774394,-450.0,0.00019515,2]
[360191567,1746614774415,-512.42,0.00019515,2]
[360191568,1746614774437,-474.75096554,0.00019515,2]
[360191569,1746614774457,-450.0,0.00019515,2]
[360191570,1746614774479,-470.0,0.00019515,2]
[360191571,1746614774501,-452.6141065,0.00019515,2]
[360191572,1746614774522,-745.46,0.00019515,2]
[360191573,1746614774544,-518.09303996,0.00019515,2]
[360191574,1746614774566,-450.0,0.00019515,2]
[360191575,1746614774587,-450.0,0.00019515,2]
[360191576,1746614774608,-450.0,0.00019515,2]
[360191577,1746614774629,-450.0,0.00019515,2]
[360191578,1746614774650,-450.0,0.00019515,2]
[360191579,1746614774671,-455.17386804,0.00019515,2]
[360191580,1746614774692,-253.68502601,0.00019515,2]
[360191581,1746614774714,-510.55,0.00019515,2]
[360191582,1746614774735,-450.0,0.00019515,2]
[360191583,1746614774755,-257.87872418,0.00019515,2]
[360191584,1746614774776,-450.0,0.00019515,2]
[360191585,1746614774796,-450.0,0.00019515,2]
[360191586,1746614774823,-450.0,0.00019515,2]
[360191587,1746614774846,-356.5536904,0.00019515,2]
[360191588,1746614774868,-470.0,0.00019515,2]
[360191589,1746614774890,-410.33590928,0.00019515,2]
[360191590,1746614774912,-450.0,0.00019515,2]
[360191591,1746614774934,-422.52430241,0.00019515,2]
[360191592,1746614774956,-450.0,0.00019515,2]
[360191593,1746614774980,-450.0,0.00019515,2]
[360191594,1746614775005,-450.0,0.00019515,2]
[360191595,1746614775025,-300.02708878,0.00019515,2]
[360191596,1746614775046,-450.0,0.00019515,2]